bitfinex/quotes_ETHUSD_20250314
["timestamp","ask_amount","ask_price","bid_price","bid_amount"]
[1741991022988,5.44392181,1929.3,1929.1,10.36715]
[1741991023169,5.44392181,1929.3,1929.1,10.36716]
[1741991023368,5.44392181,1929.3,1929.1,5.18357]
[1741991023866,4.886,1929.3,1929.2,5.18349]
[1741991029601,3.0,1929.4,1929.3,5.18322]
[1741991029804,7.888,1929.4,1929.3,6.01412]
[1741991030502,23.247,1929.5,1929.4,5.18295]
[1741991030685,31.135,1929.5,1929.4,5.18295]
[1741991034011,28.135,1929.5,1929.4,5.18295]
[1741991035910,10.988,1929.5,1929.4,5.18295]
[1741991039600,3.0,1929.7,1929.4,5.18295]
[1741991039803,17.148,1929.8,1929.4,5.18295]
[1741991039804,17.148,1929.8,1929.7,5.18215]
[1741991040117,22.036,1929.8,1929.7,5.18215]
[1741991041210,17.148,1929.8,1929.7,5.97365]
[1741991043522,17.148,1929.8,1929.7,5.18215]
[1741991043825,17.148,1929.8,1929.7,5.97365]
[1741991044515,3.0,1930.1,1930.0,5.97284]
[1741991044720,6.1,1930.2,1930.1,5.18107]
[1741991044721,9.1,1930.2,1930.1,5.18107]
[1741991045019,10.987,1930.2,1930.1,5.18107]
[1741991045715,9.1,1930.2,1930.1,5.18107]
[1741991045918,13.987,1930.2,1930.1,5.18107]
[1741991048022,7.887,1930.2,1930.1,5.18107]
[1741991049598,4.887,1930.2,1930.1,5.18107]
[1741991050117,6.1,1930.4,1930.1,5.18107]
[1741991050323,9.1,1930.4,1930.3,5.18054]
[1741991050519,13.987,1930.4,1930.3,5.18054]
[1741991052800,17.1003,1930.4,1930.3,5.18054]
[1741991055025,17.1003,1930.4,1930.2,5.18065]
[1741991055208,17.1003,1930.4,1929.9,5.18151]
[1741991055209,3.78,1930.3,1929.9,5.18151]
[1741991055627,0.78,1930.2,1929.9,5.18151]
[1741991055797,1.158,1930.2,1929.9,5.18151]
[1741991056194,1.158,1930.2,1929.8,5.18187]
[1741991056392,0.78,1930.1,1929.7,5.18212]
[1741991056624,7.886,1930.0,1929.6,5.1824]
[1741991056791,0.78,1929.9,1929.6,5.1824]
[1741991057917,0.78,1929.9,1929.6,5.18241]
[1741991058221,6.88,1929.9,1929.6,5.18241]
[1741991058405,0.688,1929.8,1929.6,10.36467]
[1741991058604,0.688,1929.8,1929.6,5.18226]
[1741991060198,0.688,1929.8,1929.6,5.18221]
[1741991060397,0.688,1929.8,1929.7,5.18215]
[1741991061728,0.688,1929.8,1929.6,5.18221]
[1741991062106,0.688,1929.8,1929.6,10.36453]
[1741991062509,9.1,1929.9,1929.8,5.18188]
[1741991063498,9.1,1929.9,1929.7,5.18215]
[1741991064401,0.8232,1929.8,1929.5,5.18249]
[1741991064746,3.8232,1929.8,1929.6,5.18238]
[1741991064900,3.0,1929.8,1929.6,5.18232]
[1741991065104,6.1,1929.9,1929.8,5.18188]
[1741991065442,13.986,1929.9,1929.8,5.18188]
[1741991066225,17.099,1929.9,1929.8,5.18188]
[1741991067729,10.986,1929.9,1929.8,5.18188]
[1741991068447,4.886,1929.9,1929.8,5.18188]
[1741991069324,17.144,1930.0,1929.8,5.18188]
[1741991069556,4.886,1929.9,1929.8,5.18188]
[1741991073367,17.144,1930.0,1929.9,5.18161]
[1741991073568,24.6544,1930.0,1929.9,5.18161]
[1741991075126,17.144,1930.0,1929.9,5.94271]
[1741991075326,22.03,1930.0,1929.9,10.03576062]
[1741991078585,22.03,1930.0,1929.9,9.27466062]
[1741991081170,22.03,1930.0,1929.9,5.18161]
[1741991082747,22.8488,1930.0,1929.9,5.18161]
[1741991082973,25.13368,1930.0,1929.7,5.18209]
[1741991083347,25.13368,1930.0,1929.7,10.36406]
[1741991083547,25.13368,1930.0,1929.8,5.18177]
[1741991084380,25.13368,1930.0,1929.8,5.18172]
[1741991086173,31.23368,1930.0,1929.8,5.18172]
[1741991086379,3.123368,1929.9,1929.8,5.18172]
[1741991089180,3.123368,1929.9,1929.7,5.18197]
[1741991089381,9.223368,1929.9,1929.5,5.18247]
[1741991089584,0.8188,1929.8,1929.5,10.36496]
[1741991090176,3.8188,1929.8,1929.4,5.18287]
[1741991090388,0.8188,1929.6,1929.3,5.18305]
[1741991090582,4.886,1929.5,1929.3,5.18305]
[1741991092501,4.886,1929.5,1929.4,5.18295]
[1741991095598,4.886,1929.5,1929.4,9.27600062]
[1741991099264,4.886,1929.5,1929.4,10.05840062]
[1741991105271,4.886,1929.5,1929.4,9.27600062]
[1741991112914,5.45706,1929.5,1929.2,10.3667]
[1741991113112,0.8246,1929.4,1929.2,5.18324]
[1741991113316,11.55706,1929.5,1929.0,4.09305062]
[1741991113317,11.55706,1929.5,1929.3,10.36644]
[1741991113518,12.38166,1929.5,1929.4,5.18295]
[1741991113889,12.38166,1929.5,1929.3,5.18322]
[1741991114094,1.238166,1929.4,1929.3,5.18322]
[1741991118728,6.67106,1929.5,1929.4,5.18295]
[1741991118906,11.55706,1929.5,1929.4,5.18295]
[1741991119727,10.986,1929.5,1929.4,10.08200062]
[1741991124130,4.886,1929.5,1929.4,10.08200062]
[1741991136842,4.886,1929.5,1929.4,5.18295]
[1741991137147,5.6516,1929.5,1929.4,5.18295]
[1741991137653,5.6516,1929.5,1929.3,5.18312]
[1741991137827,0.56516,1929.4,1929.3,5.18312]
[1741991138344,0.7656,1929.3,1929.2,7.64150543]
[1741991140317,0.56516,1929.4,1929.3,5.18322]
[1741991144452,6.8689,1929.7,1929.3,9.27938734]
[1741991144655,4.886,1929.4,1929.3,10.36623]
[1741991145859,4.886,1929.4,1929.3,13.36623]
[1741991147657,6.1,1929.7,1929.6,5.18242]
[1741991147861,10.986,1929.7,1929.6,5.18242]
[1741991148926,6.1,1929.7,1929.6,5.18242]
[1741991149127,10.986,1929.7,1929.6,5.18242]
[1741991151260,22.033,1929.9,1929.8,5.18188]
[1741991151464,22.033,1929.9,1929.8,10.06694734]
[1741991151635,17.147,1929.9,1929.8,9.27804734]
[1741991155048,4.886,1930.0,1929.9,5.18161]
[1741991160897,9.1,1930.1,1930.0,5.18134]
[1741991161050,13.985,1930.1,1930.0,5.18134]
[1741991161700,10.985,1930.1,1930.0,5.18134]
[1741991164468,12.16039,1930.1,1930.0,5.18134]
[1741991167674,12.16039,1930.1,1929.9,7.63770525]
[1741991167872,0.7947,1930.0,1929.8,12.81955525]
[1741991168077,12.16039,1930.1,1929.9,12.81915525]
[1741991168288,1.216039,1930.0,1929.9,12.81915525]
[1741991168792,10.985,1930.1,1930.0,5.18134]
[1741991169087,10.985,1930.1,1930.0,7.63743525]
[1741991169247,10.985,1930.1,1930.0,5.18134]
[1741991171878,10.985,1930.1,1930.0,7.63743525]
[1741991172388,3.0,1930.3,1930.2,5.18081]
[1741991172389,6.1,1930.3,1930.2,5.18081]
[1741991172605,20.146,1930.4,1930.3,5.18054]
[1741991172766,25.03,1930.4,1930.3,7.63663525]
[1741991173289,20.146,1930.4,1930.3,7.63663525]
[1741991173593,20.146,1930.4,1930.3,8.46373525]
[1741991173594,22.03,1930.4,1930.3,8.46373525]
[1741991174379,17.146,1930.4,1930.3,10.15024813]
[1741991174774,17.146,1930.4,1930.3,10.0984462]
[1741991177396,17.146,1930.4,1930.3,9.2713462]
[1741991179097,4.884,1930.6,1930.3,9.2713462]
[1741991179098,4.884,1930.6,1930.4,5.18019]
[1741991179414,0.4884,1930.5,1930.4,5.18019]
[1741991179611,4.884,1930.6,1930.4,10.3603]
[1741991180111,4.884,1930.6,1930.5,5.18]
[1741991181624,7.884,1930.6,1930.3,5.18054]
[1741991181824,3.7877,1930.5,1930.2,5.18062]
[1741991182330,3.7877,1930.5,1930.1,5.1809]
[1741991182644,0.37877,1930.4,1930.2,5.18077]
[1741991183128,3.7877,1930.5,1930.4,5.18027]
[1741991185135,3.7877,1930.5,1930.3,5.18052]
[1741991185736,9.8877,1930.5,1930.3,5.18052]
[1741991186434,9.8877,1930.5,1930.2,5.18076]
[1741991186751,9.8877,1930.5,1930.1,5.1809]
[1741991186910,0.98877,1930.4,1930.1,5.1809]
[1741991187110,0.98877,1930.4,1930.2,5.18079]
[1741991187302,0.98877,1930.4,1930.2,5.1806]
[1741991188434,0.98877,1930.4,1930.3,5.18054]
[1741991188636,0.7683,1930.3,1930.0,5.18124]
[1741991188796,4.883,1930.2,1930.0,5.18124]
[1741991189013,0.4883,1930.1,1930.0,5.18124]
[1741991189453,0.7683,1930.0,1929.8,5.18173]
[1741991189639,6.8683,1930.0,1929.8,5.18173]
[1741991190216,6.8683,1930.0,1929.7,5.18213]
[1741991190659,6.8683,1930.0,1929.6,4.0908062]
[1741991190858,6.8683,1930.0,1929.9,5.18161]
[1741991191018,6.83566,1930.0,1929.9,6.01091]
[1741991191228,6.1,1930.0,1929.9,6.01091]
[1741991191526,10.983,1930.0,1929.9,5.18161]
[1741991194553,4.883,1930.0,1929.9,5.18161]
[1741991196223,4.883,1930.0,1929.9,7.63784919]
[1741991196555,5.3713,1930.0,1929.9,7.63784919]
[1741991196854,5.3713,1930.0,1929.9,2.45623919]
[1741991197057,4.883,1930.0,1929.9,7.63784919]
[1741991204333,4.883,1930.0,1929.9,2.45623919]
[1741991204661,4.883,1930.0,1929.7,5.18213]
[1741991204861,0.7721,1929.9,1929.7,12.82037919]
[1741991205047,4.883,1930.0,1929.8,7.63811919]
[1741991205253,0.4883,1929.9,1929.8,7.63811919]
[1741991206164,6.5883,1929.9,1929.8,7.63811919]
[1741991206364,6.1,1929.9,1929.8,7.63811919]
[1741991206937,13.983,1930.0,1929.7,2.45623919]
[1741991207241,3.0,1929.9,1929.8,2.45623919]
[1741991207439,3.0,1929.9,1929.8,7.63811919]
[1741991208239,3.0,1929.9,1929.8,2.45623919]
[1741991208456,4.3983,1929.9,1929.8,2.45623919]
[1741991209145,4.3983,1929.9,1929.8,7.63811919]
[1741991209340,3.0,1929.9,1929.8,7.63811919]
[1741991209565,7.884,1929.9,1929.8,7.63811919]
[1741991212646,6.1,1930.0,1929.9,5.18161]
[1741991212843,10.984,1930.0,1929.9,8.44564919]
[1741991216574,6.1,1930.2,1930.1,5.18107]
[1741991216868,6.1,1930.2,1930.1,7.63730919]
[1741991217270,6.1,1930.2,1930.1,10.85494838]
[1741991217271,10.984,1930.2,1930.1,10.85494838]
[1741991217875,17.142,1930.3,1930.2,5.18081]
[1741991218057,17.142,1930.3,1930.2,10.09328838]
[1741991220461,6.1,1930.8,1930.7,5.17946]
[1741991220654,5.57312,1930.8,1930.7,7.63569919]
[1741991221044,8.57312,1930.8,1930.7,7.63569919]
[1741991221542,7.883,1930.8,1930.7,7.63569919]
[1741991221742,3.0,1930.8,1930.7,7.63569919]
[1741991221940,7.883,1930.8,1930.7,7.63569919]
[1741991222475,7.883,1930.8,1930.7,9.26895201]
[1741991222784,3.0,1930.8,1930.7,9.26895201]
[1741991223354,23.242,1931.1,1930.7,9.26895201]
[1741991223355,17.142,1931.1,1930.7,9.26895201]
[1741991223557,4.883,1931.0,1930.9,5.17878]
[1741991223756,7.883,1931.0,1930.9,5.17878]
[1741991224945,7.88848062,1931.0,1930.9,5.17878]
[1741991225273,10.63186068,1931.0,1930.9,5.17878]
[1741991225478,10.63186068,1931.0,1930.7,5.17936]
[1741991225774,10.63186068,1931.0,1930.7,5.17927]
[1741991226578,10.63186068,1931.0,1930.7,10.35856]
[1741991226767,16.73186068,1931.0,1930.8,5.17915]
[1741991226972,1.67318607,1930.9,1930.8,5.17915]
[1741991228373,1.67318607,1930.9,1930.7,5.17927]
[1741991228563,2.46118607,1930.9,1930.6,5.17964]
[1741991229358,2.46118607,1930.9,1930.7,5.17941]
[1741991231687,2.46118607,1930.9,1930.6,10.35916]
[1741991231891,2.46118607,1930.9,1930.6,5.17958]
[1741991232102,5.46118607,1930.9,1930.4,5.18023]
[1741991232408,0.788,1930.7,1930.4,5.18023]
[1741991232596,4.882,1930.6,1930.4,5.18023]
[1741991233971,4.882,1930.6,1930.4,5.18011]
[1741991233972,10.982,1930.6,1930.4,5.18011]
[1741991234597,10.982,1930.6,1930.4,10.36029]
[1741991234792,10.982,1930.6,1930.5,5.18]
[1741991235895,10.982,1930.6,1930.5,9.26949201]
[1741991238499,4.882,1930.6,1930.5,9.26949201]
[1741991239004,4.882,1930.8,1930.7,5.98966]
[1741991239171,4.832,1930.8,1930.7,10.07915201]
[1741991239904,7.88748062,1931.0,1930.9,5.17893]
[1741991240273,4.88748062,1931.0,1930.9,5.17893]
[1741991246284,5.45423868,1931.0,1930.8,5.17914]
[1741991246484,5.72707,1931.6,1930.6,9.26903201]
[1741991246485,2.12e-06,1932.0,1931.1,0.8102]
[1741991246680,0.54212401,1932.6,1932.5,5.17464]
[1741991246903,0.54212401,1932.6,1932.5,9.26413201]
[1741991247113,0.02,1932.9,1932.5,5.17461]
[1741991247419,0.02,1932.9,1932.5,5.17445]
[1741991247420,5.051,1932.8,1932.5,5.17445]
[1741991247588,0.5051,1932.7,1932.5,5.17445]
[1741991247787,5.052,1932.6,1932.5,5.17445]
[1741991249609,5.052,1932.6,1932.4,5.17485]
[1741991249815,5.8443,1932.6,1932.2,5.17541]
[1741991250512,5.8443,1932.6,1932.2,10.35055]
[1741991250722,0.58443,1932.5,1932.2,10.35055]
[1741991251618,0.58443,1932.5,1932.2,10.35053]
[1741991252384,6.68443,1932.5,1932.2,5.17521]
[1741991252787,6.68443,1932.5,1932.0,5.17578]
[1741991252788,3.0,1932.4,1932.0,5.17578]
[1741991253494,3.0,1932.2,1931.8,9.26600201]
[1741991253787,6.1393,1932.1,1931.8,9.26600201]
[1741991254334,6.1393,1932.1,1931.8,4.08949201]
[1741991255017,3.0,1932.0,1931.8,4.08949201]
[1741991257813,3.0,1932.0,1931.6,5.17694]
[1741991257814,3.0,1932.0,1931.6,9.26643201]
[1741991258258,8.17607,1932.0,1931.6,9.26643201]
[1741991258431,0.817607,1931.9,1931.6,9.26643201]
[1741991258941,6.917607,1931.9,1931.6,9.26643201]
[1741991262647,12.093897,1931.9,1931.4,9.26696201]
[1741991263551,12.093897,1931.9,1931.4,4.08949201]
[1741991263552,5.17662,1931.8,1931.4,4.08949201]
[1741991263722,5.7805,1931.7,1931.4,4.08949201]
[1741991264051,7.393882,1931.7,1931.4,4.08949201]
[1741991264558,18.670662,1931.7,1931.4,4.08949201]
[1741991264741,18.670662,1931.7,1931.3,5.17784]
[1741991265054,5.17708,1931.6,1931.2,14.44558201]
[1741991265557,5.17708,1931.6,1931.2,9.26749201]
[1741991265729,5.17761,1931.4,1931.1,4.08949201]
[1741991265924,5.023,1931.3,1931.1,4.08949201]
[1741991266446,5.023,1931.3,1931.0,5.1784]
[1741991267257,5.7775,1931.3,1931.0,5.1784]
[1741991267560,5.7775,1931.3,1930.9,9.26839201]
[1741991267791,0.57775,1931.2,1930.9,9.26824201]
[1741991269360,0.57775,1931.2,1930.9,9.26822201]
[1741991269533,0.57775,1931.2,1931.0,5.17862]
[1741991269740,0.57775,1931.2,1930.9,14.44699201]
[1741991270058,0.57775,1931.2,1930.9,4.08949201]
[1741991270263,0.57775,1931.2,1930.8,5.1791]
[1741991270264,5.75597,1931.2,1930.8,5.1791]
[1741991271059,0.575597,1931.1,1930.8,5.17909]
[1741991271265,3.57775,1931.2,1931.0,5.17866]
[1741991271579,6.1,1931.4,1931.2,5.17812]
[1741991271733,5.014,1931.3,1931.2,5.17812]
[1741991272532,5.013,1931.3,1931.2,5.17812]
[1741991273450,5.012,1931.3,1931.2,5.17812]
[1741991275868,6.1,1931.4,1931.3,5.17785]
[1741991276171,11.107,1931.4,1931.3,9.26734201]
[1741991277778,11.103,1931.4,1931.3,9.26734201]
[1741991279341,26.231,1931.7,1931.6,5.17705]
[1741991279544,31.23,1931.7,1931.6,5.17705]
[1741991279771,28.23,1931.7,1931.6,5.17705]
[1741991280161,23.231,1931.7,1931.6,5.17705]
[1741991280470,28.229,1931.7,1931.6,5.17705]
[1741991282449,28.229,1931.7,1931.5,5.17716]
[1741991282849,31.0519,1931.7,1931.5,5.17716]
[1741991283061,31.0519,1931.7,1931.4,5.17758]
[1741991283766,31.0519,1931.7,1931.4,10.35502]
[1741991284560,31.0519,1931.7,1931.5,5.17731]
[1741991287065,31.0519,1931.7,1931.4,5.17744]
[1741991289786,3.89619,1931.6,1931.4,5.17744]
[1741991290159,0.791,1931.6,1931.3,5.17771]
[1741991291284,0.791,1931.6,1931.2,5.17809]
[1741991291285,11.14537,1931.6,1931.2,5.17809]
[1741991291577,17.24537,1931.6,1931.2,5.17809]
[1741991291781,8.17746,1931.5,1931.1,5.17836]
[1741991291951,8.17746,1931.5,1931.0,5.17859]
[1741991292156,11.173156,1931.4,1931.0,5.17859]
[1741991292370,10.92677,1931.3,1930.9,9.26823201]
[1741991292562,3.0,1931.2,1930.9,5.17874]
[1741991292850,9.1,1931.2,1930.9,5.17874]
[1741991296296,9.1,1931.2,1930.9,10.35746]
[1741991296464,11.102677,1931.2,1930.9,5.17872]
[1741991297074,11.102677,1931.2,1931.0,5.17866]
[1741991299064,4.966,1931.1,1931.0,5.17866]
[1741991302106,4.966,1931.1,1930.9,14.44700201]
[1741991302603,4.966,1931.1,1930.9,9.26821201]
[1741991303503,4.966,1931.1,1930.9,14.44705201]
[1741991304477,4.966,1931.1,1931.0,5.17866]
[1741991307600,5.71769084,1931.1,1930.9,9.26821201]
[1741991307805,5.71769084,1931.1,1930.9,5.17872]
[1741991308983,5.71769084,1931.1,1930.9,5.17893]
[1741991309179,0.75169084,1931.1,1930.9,5.17884]
[1741991309488,0.75169084,1931.1,1930.9,9.26833201]
[1741991309489,4.947,1931.0,1930.9,9.26833201]
[1741991316321,4.935,1931.0,1930.9,9.26821201]
[1741991326096,5.4285,1931.0,1930.7,10.32119844]
[1741991326293,6.2088,1931.0,1930.8,5.17916]
[1741991330310,17.48763,1931.0,1930.6,5.17972]
[1741991330525,1.748763,1930.9,1930.6,5.17972]
[1741991332021,9.927703,1930.9,1930.5,9.26934201]
[1741991332353,6.1,1930.9,1930.7,4.08949201]
[1741991332651,6.1,1930.9,1930.8,5.1792]
[1741991333521,6.1,1930.9,1930.7,10.09673201]
[1741991334130,6.1,1930.9,1930.7,6.00724]
[1741991334323,6.1,1930.9,1930.7,5.17944]
[1741991334537,7.2035,1930.9,1930.7,5.17944]
[1741991335347,7.2035,1930.9,1930.7,5.17931]
[1741991335511,6.1,1930.9,1930.7,5.17931]
[1741991336149,6.1,1930.9,1930.8,5.1792]
[1741991338126,11.035,1931.0,1930.8,5.1792]
[1741991339956,4.9,1930.9,1930.8,5.1792]
[1741991340841,4.9,1930.9,1930.7,5.17931]
[1741991342350,6.0,1930.9,1930.7,5.17931]
[1741991342548,6.0,1930.9,1930.6,5.17963]
[1741991343350,0.7933,1930.8,1930.5,5.17998]
[1741991343508,5.97252,1930.8,1930.4,9.26958201]
[1741991343713,0.597252,1930.7,1930.4,9.26958201]
[1741991343914,6.697252,1930.7,1930.4,9.26958201]
[1741991344147,6.697252,1930.7,1930.4,4.08949201]
[1741991344148,11.876742,1930.7,1930.4,4.08949201]
[1741991345960,6.697252,1930.7,1930.4,9.26973201]
[1741991346654,6.697252,1930.7,1930.4,14.44985201]
[1741991346856,6.597252,1930.7,1930.4,14.44985201]
[1741991347160,6.597252,1930.7,1930.4,14.44970201]
[1741991347546,6.597252,1930.7,1930.4,9.26958201]
[1741991347751,6.597252,1930.7,1930.5,5.18]
[1741991353756,5.8394952,1930.6,1930.3,4.08949201]
[1741991353957,4.887,1930.5,1930.3,4.08949201]
[1741991355451,4.887,1930.5,1930.3,9.27001201]
[1741991357658,4.887,1930.5,1930.3,4.08949201]
[1741991359063,5.6892,1930.5,1930.3,4.08949201]
[1741991359267,6.84207152,1930.5,1930.3,4.08949201]
[1741991359761,12.94207152,1930.5,1930.2,5.18061]
[1741991359968,8.18027,1930.4,1930.0,5.99114]
[1741991360569,13.36072,1930.4,1930.0,5.18134]
[1741991360852,8.18027,1930.4,1929.9,9.27107201]
[1741991361054,5.998757,1930.3,1929.9,9.27096201]
[1741991361458,5.998757,1930.3,1929.9,14.45242201]
[1741991362134,0.818027,1930.3,1930.0,5.18133]
[1741991364355,6.918027,1930.3,1930.0,5.18133]
[1741991364540,0.6918027,1930.2,1930.0,5.18133]
[1741991364741,4.887,1930.1,1930.0,5.18133]
[1741991370183,6.1,1930.3,1930.2,5.18081]
[1741991370388,10.988,1930.3,1930.2,8.45066732]
[1741991372287,10.988,1930.3,1930.2,5.99561]
[1741991373685,6.1,1930.3,1930.2,5.99561]
[1741991373892,10.988,1930.3,1930.2,5.99561]
[1741991376064,4.888,1930.3,1930.2,5.99561]
[1741991378102,6.1,1930.5,1930.4,5.18027]
[1741991378256,4.887,1930.5,1930.4,5.18027]
[1741991378599,6.1,1930.6,1930.4,5.18027]
[1741991378786,4.887,1930.5,1930.4,5.18027]
[1741991380001,6.1,1930.6,1930.4,5.18027]
[1741991380212,4.887,1930.5,1930.4,5.18027]
[1741991381392,4.887,1930.5,1930.3,5.18043]
[1741991381594,5.9857,1930.5,1930.2,5.9956]
[1741991381789,5.9857,1930.5,1930.2,5.1808]
[1741991381996,5.9857,1930.5,1930.2,10.36141]
[1741991382493,0.8182,1930.4,1930.1,10.36194]
[1741991382693,1.49859,1930.4,1930.1,5.18088]
[1741991383489,4.49859,1930.4,1930.1,5.18102]
[1741991383695,4.49859,1930.4,1930.1,9.27294345]
[1741991384464,9.67898,1930.4,1929.9,5.18161]
[1741991384797,9.67898,1930.4,1930.0,5.18124]
[1741991384798,7.067898,1930.3,1930.0,5.18124]
[1741991385105,7.067898,1930.3,1929.9,5.18145]
[1741991385106,0.8182,1930.1,1929.8,5.18186]
[1741991385279,4.887,1930.0,1929.8,9.27357345]
[1741991386395,4.887,1930.0,1929.9,5.18161]
[1741991387686,4.887,1930.0,1929.8,9.27357345]
[1741991389174,4.887,1930.0,1929.9,5.18161]
[1741991393700,3.0,1930.2,1929.9,5.18161]
[1741991393875,3.8182,1930.0,1929.6,5.95286]
[1741991394072,3.8182,1930.0,1929.7,5.18212]
[1741991394281,3.8182,1930.0,1929.8,2.45652035]
[1741991395109,8.99955,1930.0,1929.7,2.45652035]
[1741991395775,5.18167,1929.9,1929.7,2.45652035]
[1741991395983,0.518167,1929.8,1929.6,2.45652035]
[1741991396213,4.888,1929.7,1929.6,2.45652035]
[1741991396392,4.888,1929.7,1929.5,5.18255]
[1741991396600,5.7062,1929.7,1929.5,5.18255]
[1741991397381,4.888,1929.7,1929.6,5.18242]
[1741991397811,4.888,1929.7,1929.6,9.27733317]
[1741991400436,6.8706,1929.9,1929.7,5.18197]
[1741991400437,6.1,1929.9,1929.7,5.18197]
[1741991400629,5.498,1929.8,1929.7,5.18197]
[1741991400988,4.888,1929.8,1929.7,5.18197]
[1741991402441,4.888,1929.8,1929.6,14.45969317]
[1741991402991,5.6586,1929.8,1929.5,5.18266]
[1741991403117,3.0,1929.7,1929.3,5.96065]
[1741991403305,0.3,1929.6,1929.3,10.05556317]
[1741991403906,0.3,1929.6,1929.3,9.27796317]
[1741991404125,0.3,1929.6,1929.4,5.18294]
[1741991405327,0.3,1929.6,1929.5,5.18268]
[1741991405536,0.3,1929.6,1929.4,5.18288]
[1741991408503,3.0,1929.7,1929.4,5.18275]
[1741991408802,3.0,1929.8,1929.7,5.18204]
[1741991409003,6.1,1929.9,1929.8,5.18188]
[1741991409217,10.989,1929.9,1929.8,5.95948]
[1741991409419,10.989,1929.9,1929.8,5.18188]
[1741991411318,4.889,1929.9,1929.8,5.18188]
[1741991411520,17.142,1930.1,1929.9,5.95898]
[1741991411724,17.142,1930.1,1929.8,5.18183]
[1741991411725,17.142,1930.1,1930.0,4.09491317]
[1741991412018,24.5158,1930.1,1929.8,4.09491317]
[1741991412225,29.69698,1930.1,1929.7,5.18198]
[1741991412537,24.5158,1930.1,1929.8,5.18186]
[1741991413134,24.5158,1930.1,1929.8,10.36358]
[1741991414037,24.5158,1930.1,1929.8,5.18172]
[1741991414255,2.45158,1930.0,1929.8,5.18172]
[1741991414600,22.8016,1930.1,1929.8,10.36343]
[1741991414807,22.8016,1930.1,1929.8,5.18171]
[1741991417141,28.9016,1930.1,1929.8,5.18171]
[1741991417508,28.9016,1930.1,1929.7,9.27700317]
[1741991418019,28.9016,1930.1,1929.8,5.18186]
[1741991418223,32.309843,1930.1,1929.8,10.36354]
[1741991418426,32.309843,1930.1,1929.8,5.18168]
[1741991420775,32.309843,1930.1,1929.9,5.18156]
[1741991421075,32.309843,1930.1,1929.8,5.18168]
[1741991422068,32.309843,1930.1,1929.8,10.36339]
[1741991422631,32.309843,1930.1,1929.8,5.18168]
[1741991422980,3.2309843,1930.0,1929.8,5.18168]
[1741991424642,3.2309843,1930.0,1929.7,9.27704317]
[1741991425024,3.2309843,1930.0,1929.7,5.18213]
[1741991425456,3.2309843,1930.0,1929.7,5.182]
[1741991425670,0.7762,1929.9,1929.5,5.18268]
[1741991425878,6.28092843,1929.9,1929.5,5.18268]
[1741991426462,4.09929843,1929.9,1929.6,5.18224]
[1741991427447,15.38094843,1929.9,1929.5,5.18268]
[1741991427646,20.56281843,1929.9,1929.4,5.18286]
[1741991427846,2.05628184,1929.8,1929.4,5.18286]
[1741991428083,4.888,1929.7,1929.4,5.18286]
[1741991428588,3.7762,1929.6,1929.4,5.18286]
[1741991428963,3.7762,1929.6,1929.3,9.27809317]
[1741991429393,3.7762,1929.6,1929.1,5.18367]
[1741991429568,3.0,1929.4,1929.1,5.18367]
[1741991429763,4.894,1929.3,1929.1,5.18367]
[1741991430367,4.894,1929.3,1929.0,5.18403]
[1741991430368,5.7202,1929.3,1929.0,5.18403]
[1741991431261,5.7202,1929.3,1929.0,5.18385]
[1741991431898,5.7202,1929.3,1929.1,5.18375]
[1741991432093,0.57202,1929.2,1929.1,5.18375]
[1741991433531,0.57202,1929.2,1929.1,5.18376]
[1741991434679,0.57202,1929.2,1929.0,5.18383]
[1741991434886,6.67202,1929.2,1929.0,5.18383]
[1741991435069,6.67202,1929.2,1928.9,4.09491317]
[1741991435070,6.67202,1929.2,1928.9,9.27913317]
[1741991435781,6.67202,1929.2,1928.9,5.18406]
[1741991435782,0.667202,1929.1,1928.9,5.18406]
[1741991436108,0.667202,1929.1,1929.0,5.18403]
[1741991436674,0.667202,1929.1,1928.9,9.27906317]
[1741991436885,0.667202,1929.1,1928.9,14.46324317]
[1741991437086,0.667202,1929.1,1928.9,9.27906317]
[1741991438517,0.667202,1929.1,1928.9,5.18415]
[1741991440217,0.667202,1929.1,1928.8,5.18455]
[1741991440421,0.8262,1929.0,1928.8,5.18455]
[1741991440625,4.889,1928.9,1928.8,5.18455]
[1741991444736,4.889,1928.9,1928.7,5.18482]
[1741991445099,5.6911,1928.9,1928.7,5.18482]
[1741991445403,10.87543,1928.9,1928.5,5.18534]
[1741991446014,5.6911,1928.9,1928.6,5.18508]
[1741991446231,0.56911,1928.8,1928.6,5.18497]
[1741991446439,5.6911,1928.9,1928.6,5.18497]
[1741991446641,5.6911,1928.9,1928.7,5.18478]
[1741991446818,5.6911,1928.9,1928.5,5.18523]
[1741991446819,10.87556,1928.9,1928.5,5.18523]
[1741991447736,10.87556,1928.9,1928.5,10.37041]
[1741991448707,4.889,1928.9,1928.6,4.09491317]
[1741991448908,4.889,1928.9,1928.7,5.18462]
[1741991449108,4.89,1928.8,1928.7,10.36929]
[1741991449636,4.89,1928.8,1928.7,6.01718]
[1741991452039,6.1,1929.2,1929.1,5.18376]
[1741991452359,9.1,1929.2,1929.1,5.18376]
[1741991452512,13.99,1929.2,1929.1,5.18376]
[1741991453839,10.99,1929.2,1929.1,5.18376]
[1741991454048,12.8915,1929.2,1928.9,5.18427]